Cogmind - Beta 16.1 @@@ ROGUE MODE // 2026.04.15 @ 17:13:15 Player: H3-MLN Result: Destroyed 0b10! Performance ------------- Evolutions (9) 4500 Regions Visited (22) 4400 Robots Destroyed (395) 1975 Value Destroyed (17915) 17915 Prototype IDs (82) 1640 Alien Tech Used (11) 2200 Bonus (37855) 37855 TOTAL SCORE: 70485 Bonus ------- Triggered High Security 500 Triggered Max Security 2000 High Alert Combat Kills 2961 Follower Combat Kills 2562 Hunted by Unchained 1000 Destroyed Unchained 1000 Entered Garrisons 200 Entered DSFs 500 Network Hubs Disabled 800 Built Enhanced Grunts 300 A7 Reached Mainframe 300 Met R17 at Cetus 500 Used Core Reset Matrix 3000 Met R17 at Research 2000 Met Sigix 2000 Activated Exoskeleton 3000 Escaped with Sigix 5000 Escaped with Exo-Sigix 10000 Win 3000 Friendly Fire -2768 Cogmind --------- Core Integrity 821/1600 Matter 298/425 Energy 571/788 System Corruption 3% Temperature Cool (98) Movement Treading (127) Ox1 Location Tau Ceti IV Orbit Parts ------- > --- POWER (2) -------- VC-Graviton Reactor > --- PROPULSION (8) --- Treaded Armored-Diametric Exoskeleton Improved Diametric Drive Improved Diametric Drive Improved Diametric Drive Improved Q-thruster > --- UTILITY (11) ----- Armored Scrap Engine Experimental Coolant Injector Huge Storage Unit Advanced Signal Interpreter Centrium Light Armor Plating Centrium Heavy Armor Plating Graphene Brace > --- WEAPON (4) ------- Core Cannon Hellfire Missile Launcher Shotgun Laser Quantum Construct/C > --- INVENTORY (25) --- Improved Diametric Drive High-capacity Storage Unit Advanced Energy Well (319) Advanced Quantum Shading Machine Long-range Sensor Array Experimental EM Shield Transdimensional Reconstructor High-powered Transdimensional Reconstructor Integrity Redistributor Blink Core Spacefold Activator Warp Gun Enhanced Nova Cannon Null Cannon Enhanced Gamma Bomb Array Multitool Nanosword Sigix Containment Pod Peak State ------------ > --- POWER ------------ Improved Quantum Reactor VC-Graviton Reactor > --- PROPULSION ------- Treaded Armored-Diametric Exoskeleton Cooled Field Propulsion Drive Improved Diametric Drive Improved Diametric Drive Improved Diametric Drive > --- UTILITY ---------- Armored Scrap Engine Experimental Coolant Injector Huge Storage Unit Advanced Quantum Shading Machine Long-range Sensor Array Advanced Signal Interpreter Improved Phase Shifter Centrium Heavy Armor Plating Graphene Brace > --- WEAPON ----------- Null Cannon Shotgun Laser Quantum Construct/C Sigix Broadsword > --- INVENTORY -------- Improved Diametric Drive Improved Q-thruster High-capacity Storage Unit Advanced Energy Well Experimental Matter Compressor Improved Weapon Shielding Experimental EM Shield Transdimensional Reconstructor High-powered Transdimensional Reconstructor Integrity Redistributor Integrity Redistributor Blink Core Spacefold Activator Warp Gun Enhanced Nova Cannon Core Cannon Enhanced Gamma Bomb Array Hellfire Missile Launcher Multitool Nanosword Sigix Containment Pod [Rating: 241] Favorites ----------- Power Constructs Engine Improved Ion Engine Power Core Reinforced Fission Core Reactor Constructs Propulsion Constructs Treads Constructs Leg Flexi-carbon Leg Wheel Armored Huge Wheel Hover Unit Gravmag System Flight Unit Improved Diametric Drive Utility Huge Storage Unit Device Armored Scrap Engine Storage Huge Storage Unit Processor Advanced Signal Interpreter Hackware Advanced System Shield Protection Centrium Medium Armor Plating Artifact Phase Redirector Weapon Constructs Energy Gun Gatling Laser Energy Cannon Matter Neutralizer Ballistic Gun Light Assault Rifle Ballistic Cannon Constructs Launcher YI-UF0's Doublenader Special Weapon Advanced Remote Datajack Impact Weapon Core Stripper Slashing Weapon Nanosword Piercing Weapon Enhanced Force Lance Special Melee Weapon Advanced Datajack Build | -11 -10 -10 -10 -8 -8 -7 -7 -7 -5 -5 -4 -4 -4 -4 -4 -3 -3 -2 -2 -2 -1 -1 ------- Run | Yrd Mat Min Sub Mat Gar Fac Sto Rec Fac DSF Fac Ext Cet Arc Hub Res Tes Res Qua Sec Acc Com Slots Evolved 18 | . . . . 4 . 2 . . 4 . 2 . . . . 2 . 2 . . 2 . Power 1 | . . . . . . . . . 1 . . . . . . . . . . . . . Propulsion 6 | . . . . 2 . . . . 1 . . . . . . 1 . 1 . . 1 . Utility 9 | . . . . 2 . 2 . . 1 . 1 . . . . 1 . 1 . . 1 . Weapon 2 | . . . . . . . . . 1 . 1 . . . . . . . . . . . Parts Attached 334 | 9 3 9 6 37 6 13 20 7 9 6 29 25 12 14 6 29 19 9 44 12 4 6 Power 31 | 2 . 1 1 3 1 . 1 . 1 1 1 5 . . . 6 3 1 3 1 . . Engine 10 | 2 . 1 1 2 1 . 1 . 1 . . 1 . . . . . . . . . . Core 9 | . . . . 1 . . . . . 1 1 3 . . . 3 . . . . . . Reactor 12 | . . . . . . . . . . . . 1 . . . 3 3 1 3 1 . . Propulsion 74 | 2 . 3 1 14 2 3 6 1 1 2 7 4 2 1 1 6 3 1 8 4 1 1 Treads 20 | 1 . 2 . 4 2 2 3 1 . 1 2 . 1 . . . . . 1 . . . Leg 6 | . . . . 2 . . . . . . . 2 1 . . 1 . . . . . . Wheel 11 | 1 . 1 1 4 . . 2 . . 1 . 1 . . . . . . . . . . Hover 14 | . . . . 4 . 1 . . . . 1 1 . 1 . 1 . . 5 . . . Flight 23 | . . . . . . . 1 . 1 . 4 . . . 1 4 3 1 2 4 1 1 Utility 135 | 2 2 1 . 10 . 8 4 6 6 2 15 7 4 8 4 11 5 3 25 4 3 5 Device 67 | 1 . . . 5 . 4 3 3 2 2 6 5 1 6 . 6 2 1 13 2 3 2 Storage 14 | 1 1 1 . 1 . 1 . . . . 2 1 1 . 2 . 1 . 2 . . . Processor 12 | . 1 . . 1 . . . . 1 . 1 . . . . 1 2 . 4 1 . . Hackware 16 | . . . . . . 1 . 2 2 . 5 . . 1 1 3 . . . . . 1 Protection 25 | . . . . 3 . 2 1 1 1 . 1 1 2 1 1 1 . 2 5 1 . 2 Artifact 1 | . . . . . . . . . . . . . . . . . . . 1 . . . Weapon 94 | 3 1 4 4 10 3 2 9 . 1 1 6 9 6 5 1 6 8 4 8 3 . . Energy Gun 29 | 3 . . 1 . 2 . 3 . . . 3 5 2 2 . . 4 . 3 1 . . Energy Cannon 13 | . . . 1 1 . 2 . . . . . . 2 . 1 2 1 . 2 1 . . Ballistic Gun 15 | . 1 1 1 3 . . 1 . . . 1 1 2 2 . . 1 . . 1 . . Ballistic Cannon 8 | . . . 1 2 . . 2 . . 1 1 . . . . . . . 1 . . . Launcher 8 | . . 1 . 1 1 . 2 . . . . . . . . 1 . 2 . . . . Special Weapon 3 | . . . . . . . . . . . . 2 . . . . 1 . . . . . Impact Weapon 4 | . . 1 . 2 . . . . . . . . . . . . . . 1 . . . Slashing Weapon 9 | . . . . 1 . . 1 . 1 . 1 1 . . . 1 1 1 1 . . . Piercing Weapon 3 | . . . . . . . . . . . . . . . . 2 . 1 . . . . Special Melee Weapon 2 | . . 1 . . . . . . . . . . . 1 . . . . . . . . Unidentified Prototypes 65 | . . . . 3 . 2 7 1 . . 4 1 7 . 2 5 6 3 17 6 . 1 Corrupted Parts 7 | . . . . . . . . 2 1 . . . . 4 . . . . . . . . System Corruption 35 | . . . . . . . . 8 3 . . . . 24 . . . . . . . . Parts Lost 60 | . 1 3 . 11 . . 1 . . 3 10 10 1 . 6 . 3 1 . 3 . 7 Power 10 | . . 1 . 1 . . . . . . 1 3 . . 1 . 1 . . . . 2 Propulsion 15 | . . 1 . 5 . . . . . 1 2 3 . . 1 . . 1 . . . 1 Utility 15 | . . . . 3 . . 1 . . 1 1 1 . . 2 . 1 . . 3 . 2 Weapon 20 | . 1 1 . 2 . . . . . 1 6 3 1 . 2 . 1 . . . . 2 Highest Loss Streak 9 | . 1 2 . 9 . . 1 . . 2 7 4 1 . 2 . 2 1 . 2 . 5 To Critical Strikes 2 | . . . . . . . . . . . 1 1 . . . . . . . . . . Average Backups 19 | 2 12 14 13 16 21 20 21 22 22 23 19 17 21 21 21 22 20 20 20 19 18 19 Power . | . 1 . 1 . . . . . . . . 1 . . . . . 1 . . . . Propulsion 2 | 1 4 4 4 3 3 3 1 1 2 4 2 . 1 1 2 2 4 4 2 2 1 1 Utility 9 | . 4 5 2 5 8 6 9 10 10 9 10 11 14 14 14 15 10 7 9 7 6 7 Weapon 5 | . 1 3 3 6 9 9 8 8 8 7 5 2 4 3 4 3 3 5 5 5 6 6 Tool/Special . | . . . . . . . . . . . . . . . . . . . . . . . Unused Backups 68 | . . . 5 7 . 1 . 6 1 4 10 5 . . . 7 9 2 5 1 . 5 Power 4 | . . . 1 . . . . 2 . . . 1 . . . . . . . . . . Propulsion 19 | . . . 2 2 . . . . . 1 4 2 . . . 2 5 . 1 . . . Utility 26 | . . . 2 1 . . . 3 1 2 1 1 . . . 4 3 2 3 1 . 2 Weapon 16 | . . . . 4 . 1 . 1 . 1 5 1 . . . 1 1 . 1 . . . Tool/Special 3 | . . . . . . . . . . . . . . . . . . . . . . 3 Average Slot Usage (%) 76 | . 100 99 99 79 89 86 80 61 62 74 71 72 76 73 70 73 76 81 76 74 74 71 Engine 4 | . 14 13 14 6 9 7 7 6 5 8 . . . . . . . . . . . . Core 1 | . . . . 2 . . . . . 2 9 3 5 1 . 1 . . 1 4 4 2 Reactor 2 | . . . . . . . . . . . . 3 5 5 3 5 8 8 5 4 4 4 Treads 5 | . 14 21 14 6 18 15 9 . . 3 4 4 8 2 . . . . . . . . Wheel 5 | . 14 6 13 10 9 7 10 11 5 5 . 1 . . . . . . . . . . Hover 1 | . . . . 9 . . . . . . . 2 . 3 3 . . . . . . . Flight 4 | . . . . . . . . 3 10 6 9 2 . 3 5 10 11 17 15 17 19 19 Device 15 | . 5 . 13 10 18 19 23 21 18 17 14 14 14 13 9 11 18 25 19 19 23 21 Storage 7 | . 14 14 14 9 9 9 7 7 5 5 5 5 5 5 5 4 4 4 6 4 4 4 Processor 2 | . 8 14 . 2 . . . . 1 5 5 3 . . . 1 4 6 4 4 4 4 Hackware 3 | . . . . . . . . . 5 . 5 9 5 8 10 17 6 . . . . . Protection 3 | . . . . 3 8 9 6 1 . . . . 9 8 9 1 1 1 6 4 4 4 Energy Gun 4 | . 26 1 . . 11 9 8 1 . 1 4 10 12 4 4 . 1 3 . . . 1 Energy Cannon 3 | . . . 7 5 . 4 3 5 5 6 4 . 5 5 3 3 5 5 . . 1 . Ballistic Gun 3 | . 1 20 7 1 . . . . . . . 3 . 4 5 6 3 . 2 4 4 2 Slashing Weapon 1 | . . . . 2 4 . . . . 4 2 2 . 1 1 2 2 5 7 6 6 4 Peak Build Rating 241 | 7 8 12 13 44 41 56 68 76 83 100 129 118 154 154 136 165 183 204 226 231 230 241 Average Rating 93 | 5 7 9 11 31 40 49 58 64 75 91 115 107 141 136 131 148 171 198 203 219 225 227 On Entrance 99 | . 7 8 12 12 40 38 54 66 67 83 98 98 115 154 136 112 165 173 204 226 197 230 Avg Prop Armor Cover (%) 9 | 12 12 13 12 14 13 12 12 3 4 8 9 4 2 8 2 . . . 1 . . . Naked Turns . | . . . . . . . . . . . . . . . . . . . . . . . Heaviest Build 178 | 15 30 90 90 117 119 143 133 128 113 128 139 111 162 162 132 140 146 151 164 178 157 170 Greatest Support 199 | 10 10 40 40 56 28 28 56 56 28 28 157 99 179 179 136 147 149 153 192 192 199 199 Greatest Overweight (x) 43 | 3 2 8 8 5 4 5 4 4 4 4 4 21 1 43 . 1 . 1 1 . . 1 Average Overweight (x) 1 | . 1 2 2 1 3 4 2 2 3 3 . . . 7 . . . . . . . . Largest Inventory Capacity 25 | 8 15 25 25 25 25 25 25 25 25 25 25 20 25 25 25 25 25 25 25 25 25 25 Average Capacity 23 | 7 14 19 15 21 25 25 25 25 25 25 22 20 24 25 25 25 25 25 25 25 25 25 Most Carried 25 | 5 15 21 21 25 25 25 25 25 25 25 25 20 25 25 25 25 25 25 25 25 23 25 Average Carried 22 | 2 12 17 14 19 24 24 24 24 24 24 21 19 24 24 24 24 24 24 24 24 21 22 Final Capacity 25 | 8 15 25 15 25 25 25 25 25 25 25 20 20 25 25 25 25 25 25 25 25 25 25 Final Carried 25 | 5 15 21 15 25 25 24 25 25 25 25 15 20 25 25 22 25 25 25 25 24 21 19 Scrap Engine Consumption 115 | . . . . . . . . 22 1 8 20 23 4 3 3 9 4 . 17 1 . . Constructs Created 13 | . . . . . . . . 3 . 1 . 3 . 2 . . . . 2 . . 2 Constructs Modified 25 | . . . . . . . . 4 . . 8 2 . 3 . . . . 6 . . 2 Class Distribution -------------------- 36% | Mutant 15% | Construct 8% | Scavenger-Mutant 6% | Scavenger-Tank 6% | Commander-Construct 3% | Hacker-Mutant 3% | Alien-Sprinter 3% | Sprinter Dominant Class ---------------- Mutant | -10/Materials Mutant | -10/Mines Mutant | -10/Subcaves Mutant | -8/Materials Mutant | -8/Garrison Scavenger-Mutant | -7/Factory Scavenger-Mutant | -7/Storage Construct | -7/Recycling Mutant | -5/Factory Mutant | -5/DSF Mutant | -4/Factory Scavenger-Tank | -4/Extension Scavenger-Tank | -4/Cetus Commander-Construct | -4/Archives Scavenger-Construct | -4/Hub_04(d) Hacker-Skirmisher | -3/Research Hacker-Tank | -3/Testing Scout | -2/Research Sprinter | -2/Quarantine Alien-Sprinter | -2/Section 7 Alien-Scout | -1/Access Alien-Sprinter | -1/Command Resources | -11 -10 -10 -10 -8 -8 -7 -7 -7 -5 -5 -4 -4 -4 -4 -4 -3 -3 -2 -2 -2 -1 -1 ----------- Run | Yrd Mat Min Sub Mat Gar Fac Sto Rec Fac DSF Fac Ext Cet Arc Hub Res Tes Res Qua Sec Acc Com Matter Collected 14228 | 290 170 220 131 1197 339 278 715 3494 125 293 956 848 159 214 315 516 621 353 1090 715 117 1072 Remotely . | . . . . . . . . . . . . . . . . . . . . . . . Salvage Created 18038 | 90 204 359 120 1986 517 593 1979 705 160 239 1583 1716 148 298 475 1400 1232 405 1566 941 117 1205 Parts 837 | 4 18 25 8 108 33 28 76 21 6 4 67 70 10 31 24 61 64 18 54 49 7 51 Haulers Intercepted 18 | . . . . 5 . 1 5 . . . 1 . . . 1 3 . 1 1 . . . Recyclers Shooed 14 | . . . . 2 . . 3 1 . . 4 2 . . . . 1 . . . . 1 Parts Field Recycled 10 | . . . . . . . . . . . 10 . . . . . . . . . . . Retrieved Matter 357 | . . . . . . . . . . . 357 . . . . . . . . . . . Parts Self-Destructed 7 | . . . 7 . . . . . . . . . . . . . . . . . . . Prevented . | . . . . . . . . . . . . . . . . . . . . . . . Parts Restored . | . . . . . . . . . . . . . . . . . . . . . . . Kills | -11 -10 -10 -10 -8 -8 -7 -7 -7 -5 -5 -4 -4 -4 -4 -4 -3 -3 -2 -2 -2 -1 -1 ------- Run | Yrd Mat Min Sub Mat Gar Fac Sto Rec Fac DSF Fac Ext Cet Arc Hub Res Tes Res Qua Sec Acc Com Combat Hostiles Destroyed 261 | . 8 9 3 41 17 11 33 8 . 7 29 16 2 . 7 4 15 4 18 15 . 14 Melee 34 | . . . . 12 . . . . . . 3 2 . . . 1 . . 8 3 . 5 Guns 101 | . 8 6 1 6 9 5 25 6 . . 1 10 1 . 7 . 11 1 4 . . . Cannons 32 | . . . 2 8 1 6 3 . . 2 6 . . . . 2 1 . 1 . . . AOE 58 | . . 3 . 15 6 . . . . . 11 . . . . . . 3 3 11 . 6 Classes Destroyed 28 | 2 2 1 1 6 2 . 2 . . 3 . 2 . . . 1 1 . 1 2 . 2 Worker 29 | . . 5 . 5 . . 1 . . . 2 2 . . 4 3 . . . 2 1 4 Builder 16 | . . . . 5 . . 3 1 . . . . . . 2 2 1 . . . 2 . Tunneler 4 | 1 . 1 . 1 . . . . . . 1 . . . . . . . . . . . Hauler 18 | . . . . 5 . 1 5 . . . 1 . . . 1 3 . 1 1 . . . Recycler 27 | 1 . . . 2 . . 2 7 1 . 4 2 . . . 4 . 1 . 2 . 1 Mechanic 1 | . . . . 1 . . . . . . . . . . . . . . . . . . Operator 14 | . . . . . . . . . . . . 1 . 9 2 1 . . . 1 . . Watcher 22 | . . . . 3 . 1 2 . . . 2 1 . . . 2 2 3 2 1 1 2 Swarmer 54 | . 6 6 . 7 3 . . . . . 15 . . . 3 . . 4 2 8 . . Cutter 6 | . . . . . . . . . . . . . . . . . . . . 3 . 3 Saboteur 1 | . . . . . . . . . . . . . . . . . . . . . . 1 Grunt 89 | . 2 2 . 24 8 8 18 . . 3 3 5 . . 1 1 2 . 6 1 . 5 Brawler 3 | . . . . 1 . . 1 . . . . . . . . . . . . . . 1 Duelist 4 | . . . . . 2 . 1 . . . . . . . . . 1 . . . . . Protector 1 | . . . . . . . 1 . . . . . . . . . . . . . . . Researcher 2 | . . . . . . . . . . . . . . . . . 1 . . 1 . . Sentry 41 | . . . . 9 3 2 7 3 . . 4 5 . . 2 1 . . . 2 . 3 Specialist 4 | . . . . . . . . . . 1 . . . . . . 3 . . . . . Hunter 9 | . . . . . . . 1 . . . 3 2 . . . . 3 . . . . . Programmer 28 | . . . . . 1 1 4 . . . 4 2 . . 1 1 6 . 8 . . . Heavy 1 | . . . . . . . . . . 1 . . . . . . . . . . . . Behemoth 2 | . . . . . . . . . . . . 2 . . . . . . . . . . Cetus Guard 2 | . . . . . . . . . . . . . 2 . . . . . . . . . Striker 1 | . . . . . . . . . . . . . . . . 1 . . . . . . Executioner 1 | . . . . . . . . . . . . . . . . . . . . . . 1 Alpha 7 1 | . . . . . . . . . . . . . . . . . . . . 1 . . Fortress 1 | . . . . . . . . . . . . . . . . . . . 1 . . . Subdweller 8 | . . . 3 . . . . 5 . . . . . . . . . . . . . . Savage 1 | . . . . . . . . . . 1 . . . . . . . . . . . . Mutant 1 | . . . . . . . . . . 1 . . . . . . . . . . . . Best Kill Streak 15 | 2 6 3 2 15 6 4 6 3 1 3 8 5 2 4 5 9 4 4 8 12 4 9 Combat Bots Only 11 | . 6 3 2 9 6 4 5 3 . 3 7 2 2 . 3 1 3 4 5 11 . 6 Max Kills in Single Turn 5 | 1 2 3 1 4 3 1 2 1 1 1 5 1 1 1 1 1 2 3 1 4 1 4 Gunslinging 1 | . 1 . . . . . . . . . . . . . . . . . . . . . Exploded 5 | . . 3 . 4 3 . . . . . 5 . . . . . . 3 1 3 . 3 Melee 1 | . . . . 1 . . . . . . 1 1 . . . 1 . . 1 1 . 1 Uniques/NPCs Destroyed 3 | . . 1 . . . . . . . . . . . . . 1 . . 1 . . . YI-UF0 (-10/Mines) Revision 17++ (-3/Research) BL-1NK (-2/Quarantine) Combat | -11 -10 -10 -10 -8 -8 -7 -7 -7 -5 -5 -4 -4 -4 -4 -4 -3 -3 -2 -2 -2 -1 -1 -------- Run | Yrd Mat Min Sub Mat Gar Fac Sto Rec Fac DSF Fac Ext Cet Arc Hub Res Tes Res Qua Sec Acc Com Hostile Shots Fired 2230 | . 34 51 5 182 34 61 210 46 . 56 363 143 6 . 115 35 158 4 118 226 22 361 Missed 832 | . 7 14 . 46 12 25 67 14 . 18 160 53 1 . 42 18 59 1 40 92 14 149 Hits 1398 | . 27 37 5 136 22 36 143 32 . 38 203 90 5 . 73 17 99 3 78 134 8 212 Melee 32 | . . . . . 3 . 4 . . . . . . . . 6 . . . 13 . 6 Projectile 1366 | . 27 37 5 136 19 36 139 32 . 38 203 90 5 . 73 11 99 3 78 121 8 206 AOE 23 | . . 11 . . . . . . . . 2 . . . 8 . . . . 1 . 1 Critical Strikes 66 | . . 1 . 3 . . 4 . . 2 11 4 1 . 6 1 3 . 3 12 . 15 Actively Blocked 32 | . . . . . . . . . . . . . . . . 1 3 . 1 12 . 15 Part Disruptions 2 | . . . . . . . 1 . . . . . . . . . . . . . . 1 Actively Blocked 1 | . . . . . . . . . . . . . . . . . . . . . . 1 Damage Taken 26214 | . 280 599 114 2126 398 394 1641 360 . 709 3198 2175 155 . 2594 541 1524 22 1045 2617 229 5493 Core 2350 | . 33 155 47 336 48 83 179 22 . 32 240 265 7 . 70 39 189 . 70 331 . 204 Absorbed by Shields 2678 | . . . . . . . . . . 237 328 96 40 . . . 11 24 871 967 . 104 Reduced by Siege Mode 5 | . . . . . . . . . . . 5 . . . . . . . . . . . Redirected to Core 221 | . . . . . . . . . . . . . . . . . . . . 221 . . Redirected to Shielding 272 | . . . . . . . . . . 32 . . . . . . . . 105 . . 135 Ignored by Resistances 355 | . . . . . 5 20 105 6 . . . . 33 . . . . . 108 . . 78 Regen/Repaired (Parts) 6246 | . . . . 65 . . . 30 . 22 205 304 218 10 . . . . 1145 363 138 3746 Core Remaining (%) 60 | 100 . . 6 . 30 . . 59 . 96 . . . . 49 . 82 . . 72 . 51 Volleys Fired 1047 | 4 20 57 8 74 27 47 183 46 . 34 68 128 14 2 41 24 101 36 40 33 1 59 Largest 4 | 1 2 2 2 2 2 2 1 1 . 2 3 4 3 4 2 3 1 2 2 2 1 2 Hottest 470 | 50 90 70 113 113 160 160 80 168 . 168 168 231 267 470 150 164 105 185 190 180 300 300 Shots Fired 1331 | 4 40 94 14 120 43 63 184 47 . 35 76 178 25 8 80 34 101 37 49 38 1 60 Gun 847 | 4 40 93 6 37 28 28 143 36 . 3 13 154 21 4 78 10 48 17 42 24 . 18 Cannon 397 | . . . 8 69 9 35 41 11 . 32 58 . 4 4 2 24 53 19 4 6 1 17 Launcher 63 | . . 1 . 14 6 . . . . . 5 . . . . . . 1 3 8 . 25 Special 24 | . . . . . . . . . . . . 24 . . . . . . . . . . Kinetic 320 | . 1 74 11 59 9 . 2 1 . 3 19 23 . 2 40 10 48 3 15 . . . Thermal 789 | 4 20 19 3 47 28 63 182 46 . 32 49 66 10 6 40 16 31 32 29 30 1 35 Explosive 48 | . . 1 . 14 6 . . . . . 5 . . . . . . 1 3 8 . 10 Electromagnetic 173 | . 19 . . . . . . . . . 3 88 15 . . 8 22 1 2 . . 15 Robot Hit Streak 60 | 4 8 8 11 19 21 23 60 20 . 24 13 12 8 5 13 6 11 2 8 5 . 10 Robot Miss Streak 6 | . 2 3 1 2 6 5 3 2 . 3 4 4 4 1 5 4 5 1 3 2 . 3 Penetration Max 1 | . . . . . . . . . . . . 1 . . . . 1 . 1 . . . Secondary Targets 7 | . 2 1 . . 1 . . . . . . . 1 . 1 . . . 1 . . . Max Gunslinging Chain 1 | . 1 1 . . 1 . . . . . . . 1 . 1 . . . 1 . . . Capacitor 366 | . . . . . . 31 174 36 . 22 51 52 . . . . . . . . . . Shots Hit Robots 1159 | 4 26 65 9 145 32 52 168 46 1 33 89 139 16 18 72 44 51 9 62 33 4 41 Core Hits 789 | 3 10 33 3 102 33 32 127 41 1 36 90 56 10 11 33 17 34 12 34 27 1 43 Critical Kills 23 | . . 1 . 2 . . . . . . . 1 . . . 1 12 2 3 1 . . Critical Parts Destroyed 43 | . . . . 3 . . . . . . 3 . . . . . 25 . 10 . . 2 Critical Strikes 102 | . 1 2 . 10 . . . . . . 5 12 1 . 2 5 37 2 17 5 . 3 Burn 7 | . . 1 . . . . . . . . . 4 . . 2 . . . . . . . Meltdown 2 | . . . . . . . . . . . . . . . . 1 . . . 1 . . Destroy 60 | . . 1 . . . . . . . . 3 1 . . . 1 37 2 13 . . 2 Corrupt 6 | . 1 . . . . . . . . . . 3 1 . . 1 . . . . . . Smash 5 | . . . . 5 . . . . . . . . . . . . . . . . . . Sever 20 | . . . . 5 . . . . . . 2 4 . . . . . . 4 4 . 1 Impale 2 | . . . . . . . . . . . . . . . . 2 . . . . . . Melee Attacks 402 | . . 18 . 69 10 . 3 . 1 6 44 15 . 11 15 38 25 9 57 50 9 22 Kinetic 8 | . . . . . . . . . . . . . . . . . . . 8 . . . Impact 39 | . . 17 . 22 . . . . . . . . . . . . . . . . . . Slashing 331 | . . . . 47 10 . 3 . 1 6 43 15 . 11 14 17 25 9 49 50 9 22 Piercing 17 | . . . . . . . . . . . . . . . . 17 . . . . . . Sneak Attacks 81 | . . 1 . 15 . . 1 . 1 . 9 2 . 10 4 18 2 3 5 4 3 3 Combat Hostiles 6 | . . . . 1 . . . . . . 1 . . . . . . . 3 1 . . Follow-up Attacks 12 | . . . . . . . . . . . . . . . . . . 2 9 . 1 . Damage Inflicted 47661 | 48 345 705 143 5799 1436 1356 4620 1306 76 901 4352 3370 419 1365 2163 2492 1601 1204 3716 4088 699 5457 Guns 14042 | 48 345 585 39 432 538 503 3708 934 . 56 200 2783 346 126 1702 162 522 216 600 29 . 168 Cannons 8554 | . . . 104 1201 78 853 797 372 . 845 1213 . 73 111 . 330 602 34 150 105 . 1686 Explosions 8661 | . . 120 . 2010 820 . . . . . 1097 . . . . . . 462 437 1460 . 2255 Melee 16316 | . . . . 2156 . . 115 . 76 . 1842 501 . 1128 461 2000 477 492 2529 2492 699 1348 Ramming 2 | . . . . . . . . . . . . . . . . . . . . 2 . . Kinetic 4507 | . 7 432 66 854 78 . . . . 56 332 536 . 51 848 162 522 5 558 . . . Thermal 15929 | 48 145 153 77 779 538 1356 4505 1306 . 845 1037 938 167 186 854 222 69 245 471 134 . 1854 Explosive 7959 | . . 120 . 2010 820 . . . . . 1097 . . . . . . 462 437 1460 . 1553 Electromagnetic 3278 | . 193 . . . . . . . . . 44 1395 252 . . 108 533 . 51 . . 702 Impact 736 | . . . . 736 . . . . . . . . . . . . . . . . . . Slashing 13955 | . . . . 1420 . . 115 . 76 . 1842 501 . 1128 461 705 477 492 2199 2492 699 1348 Piercing 1295 | . . . . . . . . . . . . . . . . 1295 . . . . . . Highest Corruption 11 | . . . . . . . 3 8 3 1 10 11 11 11 10 . 3 . 4 4 . 3 Average Corruption 5 | . . . . . . . 1 3 2 1 5 10 11 7 2 . 2 . 3 2 . 2 Corruption Purged 45 | . . . . . . . . 3 3 . . . . 35 . . . . . 4 . . Corruption Blocked . | . . . . . . . . . . . . . . . . . . . . . . . Effects 230 | . . . . . . . 8 69 1 1 17 69 19 10 2 . 1 . 20 13 . . Message Errors 45 | . . . . . . . 2 13 . . 3 14 4 2 . . 1 . 5 1 . . Matter Fused 49 | . . . . . . . . 16 . . 4 14 3 4 . . . . 3 5 . . Heat Flow Errors 36 | . . . . . . . 3 11 . . 3 9 3 1 . . . . 4 2 . . Energy Discharges 30 | . . . . . . . . 11 1 . 2 7 3 2 . . . . 1 3 . . Parts Rejected 6 | . . . . . . . . . . . . 5 . . . . . . . 1 . . Parts Fused 1 | . . . . . . . . . . . . . 1 . . . . . . . . . Data Loss (minor) 29 | . . . . . . . . 11 . . 3 8 2 1 1 . . . 3 . . . Data Loss (major) 10 | . . . . . . . . 2 . . 1 2 1 . . . . . 4 . . . Misfires 8 | . . . . . . . 2 1 . . . 5 . . . . . . . . . . Alerts 8 | . . . . . . . 1 4 . 1 . 1 . . . . . . . 1 . . Misdirections 4 | . . . . . . . . . . . 1 2 . . 1 . . . . . . . Weapon Failures 4 | . . . . . . . . . . . . 2 2 . . . . . . . . . Overload Shots 2 | . . . . . . . . . . 1 . . . 1 . . . . . . . . Effects 1 | . . . . . . . . . . 1 . . . . . . . . . . . . Heat Surge 1 | . . . . . . . . . . 1 . . . . . . . . . . . . Overflow Damage 2846 | . . . . 301 42 5 91 7 . . 192 . . 147 115 568 145 16 189 206 474 348 Projectiles 168 | . . . . 4 . 5 44 7 . . . . . . . 17 39 . . . . 52 Explosions 186 | . . . . 35 42 . . . . . 20 . . . . . . . . 82 . 7 Melee 2492 | . . . . 262 . . 47 . . . 172 . . 147 115 551 106 16 189 124 474 289 Knockbacks 12 | . . . . 9 1 . . . . . 2 . . . . . . . . . . . Impact 3 | . . . . 3 . . . . . . . . . . . . . . . . . . Kinetic 9 | . . . . 6 1 . . . . . 2 . . . . . . . . . . . Secondary . | . . . . . . . . . . . . . . . . . . . . . . . Self-Inflicted Damage 691 | . . . . 69 25 . . . . . 20 . . . . . . . . 181 . 396 Shots 15 | . . . . 5 1 . . . . . 1 . . . . . . . . 2 . 6 Rammed 1 | . . . . . . . . . . . . . . . . . . . . 1 . . Targets Rammed 1 | . . . . . . . . . . . . . . . . . . . . 1 . . Kicked . | . . . . . . . . . . . . . . . . . . . . . . . Crushed . | . . . . . . . . . . . . . . . . . . . . . . . Highest Temperature 403 | 10 234 185 . 267 202 403 377 328 . 277 308 340 243 354 148 187 199 199 264 199 152 196 Average Temperature 87 | 7 115 60 . 74 82 116 103 101 . 84 113 104 87 144 49 60 83 70 90 49 113 69 Received Heat Transfer 3841 | . 96 132 . 1026 144 174 543 108 . 127 178 262 20 . 120 60 312 . 99 287 . 153 Effects 3 | . . . . . . . . . . 1 . 2 . . . . . . . . . . Energy Bleed 1 | . . . . . . . . . . 1 . . . . . . . . . . . . Interference 2 | . . . . . . . . . . . . 2 . . . . . . . . . . Siege Activations 2 | . . . . . . . . . . . 1 . 1 . . . . . . . . . Total Turns 23 | . . . . . . . . . . . 19 . 4 . . . . . . . . . Longest Duration 19 | . . . . . . . . . . . 19 . 4 . . . . . . . . . Martial Activations . | . . . . . . . . . . . . . . . . . . . . . . . Shielding Activations . | . . . . . . . . . . . . . . . . . . . . . . . Robots Disrupted . | . . . . . . . . . . . . . . . . . . . . . . . Combat Hostiles . | . . . . . . . . . . . . . . . . . . . . . . . Robots Corrupted 13 | . . . . 1 . . . . . . . 4 1 . . 1 3 . . . . 3 Combat Hostiles 12 | . . . . . . . . . . . . 4 1 . . 1 3 . . . . 3 Parts Fried 26 | . . . . 3 . . . . . . . 6 . . . 3 4 . . . . 10 Impact Corruptions 7 | . . . . 7 . . . . . . . . . . . . . . . . . . Robots Melted 25 | . . . . . 1 . 6 2 . 5 8 . . . 1 1 . . . 1 . . Combat Hostiles 22 | . . . . . 1 . 5 2 . 5 8 . . . . . . . . 1 . . Parts Melted 65 | . 1 1 . 4 4 3 27 5 . 4 8 3 . . . 4 . . . 1 . . Heat Transferred 31445 | 112 407 518 111 1332 1200 2235 8575 3299 . 3441 4329 1505 185 118 2146 222 74 333 457 111 . 735 Parts Sabotaged . | . . . . . . . . . . . . . . . . . . . . . . . Parts Stolen . | . . . . . . . . . . . . . . . . . . . . . . . Parts Stripped 38 | . . . . . . . . . . . . . . . . . . . 38 . . . Power Chain Reactions . | . . . . . . . . . . . . . . . . . . . . . . . Alert | -11 -10 -10 -10 -8 -8 -7 -7 -7 -5 -5 -4 -4 -4 -4 -4 -3 -3 -2 -2 -2 -1 -1 ------- Run | Yrd Mat Min Sub Mat Gar Fac Sto Rec Fac DSF Fac Ext Cet Arc Hub Res Tes Res Qua Sec Acc Com Maximum Alert Level 5 | . 1 . . 3 4 3 3 1 2 1 1 1 1 1 2 1 2 2 2 5 5 5 Low Security (%) 55 | 100 97 100 . 16 . . . 97 6 55 26 94 60 99 14 74 29 . . . . . Level 1 18 | . 2 . . 5 . . 35 2 77 44 73 5 39 . 14 25 44 86 72 14 . . Level 2 14 | . . . . 61 10 50 51 . 16 . . . . . 70 . 25 13 27 60 . . Level 3 7 | . . . . 16 63 49 13 . . . . . . . . . . . . 15 . . Level 4 2 | . . . . . 25 . . . . . . . . . . . . . . . 12 42 Level 5 . | . . . . . . . . . . . . . . . . . . . . . . 20 High Security . | . . . . . . . . . . . . . . . . . . . . . . 36 Max Security . | . . . . . . . . . . . . . . . . . . . . 9 87 . Sterilizations 1 | . . . . . . . . . . 1 . . . . . . . . . . . . Peak Influence 3043 | 5 200 135 . 820 1313 775 786 343 413 207 365 302 264 205 696 327 469 430 646 1870 1684 3043 Initial 1121 | . . 70 . . 512 688 348 303 413 115 108 151 162 86 . 297 72 242 189 354 1121 1100 Average 282 | . 96 26 . 499 967 701 480 18 336 173 257 63 179 28 464 142 290 326 346 654 1575 1903 Influence Increases 14957 | 10 263 305 . 1378 801 317 967 301 412 122 945 748 414 269 1140 605 871 392 912 1298 284 2203 Destroy 0b10 Robot/C 5960 | . 160 200 . 820 340 220 640 60 . 100 580 420 160 80 360 80 320 80 340 340 . 660 Destroy 0b10 Robot/NC 745 | 10 . 30 . 110 . 10 70 40 5 . 50 35 10 45 95 75 15 25 15 30 20 55 Destroy Leader 1152 | . 30 40 . 206 20 54 184 . . 10 106 44 . . 80 40 34 18 66 42 2 176 Allied During Kill 1004 | . . 11 . . . . . . . . . 169 167 125 297 . . . . 20 4 211 Trap Triggered on 0b10 10 | . . . . . . . . . . . . . . . . . 10 . . . . . Successful Hack 482 | . 13 . . 29 14 . 26 26 7 . 19 44 9 . 12 125 73 54 2 5 . 24 Select Force Hacks 250 | . . . . . . . . 150 . . . . . . 100 . . . . . . . Disable Machine 645 | . . . . 15 15 . 15 15 . . 45 15 . 15 60 . 120 . 120 120 30 60 Anti-Garrison Action 900 | . . . . . 350 . . . . . . . . . . . . . 150 150 200 50 Destroy Structure 1824 | . . 9 . 78 62 3 17 10 . 12 70 6 68 4 46 30 74 115 114 276 28 802 Advance Influence 400 | . . . . . . . . . 400 . . . . . . . . . . . . . Partial Spotted 225 | . . . . . . 15 . . . . 15 . . . 15 15 30 . 15 75 . 45 Lose Combat Pursuer 1260 | . 60 15 . 120 . 15 15 . . . 60 15 . . 75 240 195 . 90 240 . 120 Miscellaneous 100 | . . . . . . . . . . . . . . . . . . 100 . . . . Influence Decreases 12782 | 10 83 479 6 589 277 863 955 1047 280 80 843 767 488 485 574 1043 568 485 619 625 749 867 Entered New Map 4792 | . . 110 4 . 277 625 419 476 20 50 99 158 128 130 . 269 56 189 149 277 749 607 Time Decay 5942 | 10 73 339 2 479 . 238 526 231 160 . 494 423 230 295 262 474 482 286 470 318 . 150 Search Patrol Dispatched 100 | . . . . . . . . . 100 . . . . . . . . . . . . . Lost Part 578 | . 10 30 . 110 . . 10 . . 30 100 78 10 . 60 . 30 10 . 30 . 70 Lost Ally 405 | . . . . . . . . . . . . 83 120 60 102 . . . . . . 40 Purge Threat 965 | . . . . . . . . 340 . . 150 25 . . 150 300 . . . . . . Squads Dispatched 96 | . . . . 8 . 2 8 . . 1 11 3 . . 7 6 9 3 6 14 7 11 Investigation 21 | . . . . 2 . . . . . . 3 2 . . 3 3 5 . . 1 1 1 Extermination 19 | . . . . . . 1 3 . . . 2 . . . 1 . 3 3 3 1 . 2 Reinforcement 24 | . . . . 3 . 1 4 . . 1 3 1 . . 1 3 . . 1 3 . 3 Assault 24 | . . . . . . . 1 . . . . . . . . . 1 . 2 9 6 5 Garrison 8 | . . . . 3 . . . . . . 3 . . . 2 . . . . . . . Intercept . | . . . . . . . . . . . . . . . . . . . . . . . Searches Triggered 1 | . . . . . . . . . 1 . . . . . . . . . . . . . Unchained Authorized 1 | . . . . . . . . . . . . . . . . . . . 1 . . . Construction Impeded 4 | . . . . 1 . . . . . . . 1 . . . 2 . . . . . . Haulers Reinforced 6 | . . . . . . . 3 . . . 2 . . . 1 . . . . . . . Active Scanning Responses . | . . . . . . . . . . . . . . . . . . . . . . . Cargo Convoy Interrupts . | . . . . . . . . . . . . . . . . . . . . . . . Stealth | -11 -10 -10 -10 -8 -8 -7 -7 -7 -5 -5 -4 -4 -4 -4 -4 -3 -3 -2 -2 -2 -1 -1 --------- Run | Yrd Mat Min Sub Mat Gar Fac Sto Rec Fac DSF Fac Ext Cet Arc Hub Res Tes Res Qua Sec Acc Com Distress Signals 36 | . . 1 . 5 . 1 1 1 . . 4 1 2 . 2 7 3 1 2 3 . 2 Communications Jammed . | . . . . . . . . . . . . . . . . . . . . . . . Distress Signals . | . . . . . . . . . . . . . . . . . . . . . . . Times Spotted 537 | . 13 11 4 58 15 16 42 9 . 9 51 27 10 6 43 36 26 6 20 59 6 70 Peak Tracking Total 24 | . 6 3 2 11 6 3 5 2 . 4 14 4 5 2 7 5 6 3 7 22 3 24 Tactical Retreats 43 | . 2 1 . 4 . 1 1 . . . 3 1 . . 3 6 5 . 2 8 1 5 ID Masks Used 1 | . . . . . . . . . . . . . . . . . . . 1 . . . IFF Responses 3 | . . . . . . . . . . . . . . . . . . . 3 . . . Traps | -11 -10 -10 -10 -8 -8 -7 -7 -7 -5 -5 -4 -4 -4 -4 -4 -3 -3 -2 -2 -2 -1 -1 ------- Run | Yrd Mat Min Sub Mat Gar Fac Sto Rec Fac DSF Fac Ext Cet Arc Hub Res Tes Res Qua Sec Acc Com Traps Triggered 21 | . . . . 3 1 . 4 . . 2 3 1 . . . . 1 1 . 1 . 4 Indirectly 2 | . . . . . . . . . . . . . . . . . . . . . . 2 Trap Hack Attempts . | . . . . . . . . . . . . . . . . . . . . . . . Triggered . | . . . . . . . . . . . . . . . . . . . . . . . Disarmed . | . . . . . . . . . . . . . . . . . . . . . . . Reprogrammed 4 | . . . . . . . . . . . . . . . . . 4 . . . . . Reused 1 | . . . . . . . . . . . . . . . . . 1 . . . . . Traps Extracted . | . . . . . . . . . . . . . . . . . . . . . . . Installed . | . . . . . . . . . . . . . . . . . . . . . . . Triggered 1 | . . . . . . . . . . . . . . . . . 1 . . . . . Most Traps Carried 5 | . . 5 5 1 . . . . . . . . . . . . . . . . . . Machines | -11 -10 -10 -10 -8 -8 -7 -7 -7 -5 -5 -4 -4 -4 -4 -4 -3 -3 -2 -2 -2 -1 -1 ---------- Run | Yrd Mat Min Sub Mat Gar Fac Sto Rec Fac DSF Fac Ext Cet Arc Hub Res Tes Res Qua Sec Acc Com Machines Disabled 53 | . . . . 1 5 . 1 1 . . 3 2 . 1 4 . 8 1 9 9 2 6 Max in Single Turn 2 | . . . . 1 1 . 1 1 . . 1 1 . . 1 . 1 1 1 2 2 2 Garrison Access 6 | . . . . . . . . . . . 1 . . . . 1 1 . 1 1 1 . Garrison Relay 4 | . . . . . 4 . . . . . . . . . . . . . . . . . Phase Generator 1 | . . . . . . . . . . . . . . . . . . . . . . 1 Network Hub 4 | . . . . . . . . . . . . . . . 4 . . . . . . . Machines Repaired 3 | . . . . . . . . . . . . 1 . . 2 . . . . . . . Machines Dismantled . | . . . . . . . . . . . . . . . . . . . . . . . Machines Sabotaged 2 | . . . . . . . . . . . . . . . 2 . . . . . . . Overloaded Fab Kills . | . . . . . . . . . . . . . . . . . . . . . . . Hacking | -11 -10 -10 -10 -8 -8 -7 -7 -7 -5 -5 -4 -4 -4 -4 -4 -3 -3 -2 -2 -2 -1 -1 --------- Run | Yrd Mat Min Sub Mat Gar Fac Sto Rec Fac DSF Fac Ext Cet Arc Hub Res Tes Res Qua Sec Acc Com Machines Accessed 116 | . 2 . . 11 2 2 8 13 2 . 8 13 1 . 8 9 10 6 6 7 1 7 Terminals 76 | . 2 . . 7 2 . 8 4 1 . 3 13 1 . 8 2 6 4 3 5 . 7 Fabricators 6 | . . . . . . 1 . . 1 . 1 . . . . 2 . 1 . . . . Repair Stations 2 | . . . . 1 . . . . . . . . . . . 1 . . . . . . Recycling Units 11 | . . . . 1 . . . 8 . . 1 . . . . 1 . . . . . . Scanalyzers 12 | . . . . 1 . 1 . . . . 1 . . . . 2 3 1 2 1 . . Garrison Access 8 | . . . . 1 . . . . . . 2 . . . . 1 1 . 1 1 1 . Total Hacks 397 | . 6 . . 44 5 3 18 51 12 . 52 30 3 . 26 42 43 17 15 15 1 14 Successful 215 | . 3 . . 29 1 2 9 34 9 . 40 15 1 . 6 23 24 5 7 5 1 1 Failed 181 | . 3 . . 15 4 1 9 17 3 . 12 15 2 . 20 18 19 12 8 10 . 13 Catastrophic 37 | . . . . . 1 . . 3 1 . 6 2 1 . 3 . 4 3 2 5 . 6 Database Lockouts 1 | . . . . . . . . . . . . . . . . 1 . . . . . . Manual 134 | . 6 . . 20 . . 6 15 3 . 9 13 1 . 16 15 5 7 6 2 1 9 Terminals 214 | . 6 . . 26 5 . 18 13 1 . 11 30 3 . 26 14 19 11 6 11 . 14 Fabricators 28 | . . . . . . 1 . . 11 . 5 . . . . 9 . 2 . . . . Repair Stations 8 | . . . . 2 . . . . . . . . . . . 6 . . . . . . Recycling Units 56 | . . . . 3 . . . 36 . . 12 . . . . 5 . . . . . . Scanalyzers 75 | . . . . 11 . 2 . . . . 20 . . . . 7 22 4 7 2 . . Garrison Access 14 | . . . . 2 . . . . . . 4 . . . . 1 2 . 2 2 1 . Terminal Hacks 65 | . 3 . . 6 1 . 7 8 1 . 3 10 1 . 3 8 8 2 2 2 . . Record 1 | . . . . . . . . . . . . . . . . . . . 1 . . . Part Schematic 5 | . 1 . . . . . 1 . . . . 1 . . . 2 . . . . . . Robot Analysis 3 | . 2 . . 1 . . . . . . . . . . . . . . . . . . Prototype ID Bank 3 | . . . . 1 . . . 2 . . . . . . . . . . . . . . Open Door 17 | . . . . . . . 6 . . . . 8 1 . . . . . 1 1 . . Open DSF 1 | . . . . . . . . . 1 . . . . . . . . . . . . . Level Access Points 3 | . . . . . . . . . . . . . . . 1 1 1 . . . . . Branch Access Points 1 | . . . . . . . . . . . . . . . . . . 1 . . . . Machine Index 1 | . . . . . . . . . . . . . . . . . 1 . . . . . Terminal Index 2 | . . . . 1 . . . . . . 1 . . . . . . . . . . . Garrison Index 1 | . . . . . . . . . . . . . . . . 1 . . . . . . Unreport Threat 9 | . . . . . . . . 3 . . 1 1 . . 1 2 . 1 . . . . Locate Traps 4 | . . . . 1 . . . . . . 1 . . . 1 . 1 . . . . . Reprogram Traps 1 | . . . . . . . . . . . . . . . . . 1 . . . . . Maintenance Status 1 | . . . . . . . . 1 . . . . . . . . . . . . . . Recall Investigation 2 | . . . . . . . . . . . . . . . . . 2 . . . . . Recall Extermination 1 | . . . . . . . . . . . . . . . . . 1 . . . . . Hauler Manifests 1 | . . . . 1 . . . . . . . . . . . . . . . . . . Registered Components 1 | . . . . . . . . . . . . . . . . 1 . . . . . . Registered Prototypes 1 | . . . . . . . . . . . . . . . . 1 . . . . . . Zone Layout 2 | . . . . 1 . . . . . . . . . . . . 1 . . . . . Garrison Registry 1 | . . . . . 1 . . . . . . . . . . . . . . . . . Activate Exoskeleton 1 | . . . . . . . . . . . . . . . . . . . . 1 . . Release Object 2 | . . . . . . . . 2 . . . . . . . . . . . . . . Fabricator Hacks 19 | . . . . . . 1 . . 7 . 4 . . . . 6 . 1 . . . . Network Status 2 | . . . . . . . . . 1 . . . . . . 1 . . . . . . Load Schematic 7 | . . . . . . . . . 3 . 2 . . . . 2 . . . . . . Build 10 | . . . . . . 1 . . 3 . 2 . . . . 3 . 1 . . . . Repair Station Hacks 2 | . . . . 2 . . . . . . . . . . . . . . . . . . Scan Component 1 | . . . . 1 . . . . . . . . . . . . . . . . . . Repair 1 | . . . . 1 . . . . . . . . . . . . . . . . . . Recycling Unit Hacks 32 | . . . . 1 . . . 21 . . 9 . . . . 1 . . . . . . Report Inventory 31 | . . . . . . . . 21 . . 9 . . . . 1 . . . . . . Retrieve Components 1 | . . . . 1 . . . . . . . . . . . . . . . . . . Scanalyzer 50 | . . . . 11 . 1 . . . . 18 . . . . 2 12 1 4 1 . . Insert Component 22 | . . . . 4 . . . . . . 7 . . . . 1 6 . 3 1 . . Analyze 15 | . . . . 4 . . . . . . 9 . . . . 1 1 . . . . . Retrieve Study 13 | . . . . 3 . 1 . . . . 2 . . . . . 5 1 1 . . . Garrison Access Hacks 4 | . . . . 1 . . . . . . 1 . . . . 1 1 . . . . . Unlock Access 1 | . . . . 1 . . . . . . . . . . . . . . . . . . Seal Access 3 | . . . . . . . . . . . 1 . . . . 1 1 . . . . . Unauthorized Hacks 41 | . . . . 8 . . 2 5 1 . 5 5 . . 3 3 3 1 1 2 1 1 Terminals 25 | . . . . 8 . . 2 . . . 2 5 . . 3 . 2 1 . 1 . 1 Track 4 | . . . . . . . . . . . . 1 . . . . 1 1 . 1 . . Botnet 11 | . . . . 3 . . 1 . . . 2 2 . . 1 . 1 . . . . 1 Operators 2 | . . . . . . . 1 . . . . 1 . . . . . . . . . . Skim 6 | . . . . 5 . . . . . . . 1 . . . . . . . . . . Sabotage 2 | . . . . . . . . . . . . . . . 2 . . . . . . . Fabricators 3 | . . . . . . . . . 1 . . . . . . 2 . . . . . . Prioritize 2 | . . . . . . . . . 1 . . . . . . 1 . . . . . . Haulers 1 | . . . . . . . . . . . . . . . . 1 . . . . . . Repair Stations 1 | . . . . . . . . . . . . . . . . 1 . . . . . . Mechanics 1 | . . . . . . . . . . . . . . . . 1 . . . . . . Recycling Units 8 | . . . . . . . . 5 . . 3 . . . . . . . . . . . Reject 1 | . . . . . . . . . . . 1 . . . . . . . . . . . Recyclers 1 | . . . . . . . . . . . 1 . . . . . . . . . . . Mask 1 | . . . . . . . . . . . 1 . . . . . . . . . . . Tunnel 5 | . . . . . . . . 5 . . . . . . . . . . . . . . Scanalyzers 3 | . . . . . . . . . . . . . . . . . 1 . 1 1 . . Researchers 3 | . . . . . . . . . . . . . . . . . 1 . 1 1 . . Garrison Access 1 | . . . . . . . . . . . . . . . . . . . . . 1 . Jam 1 | . . . . . . . . . . . . . . . . . . . . . 1 . Data Cores Recovered 3 | . . . . . . . . . . . . 1 . . 1 1 . . . . . . Used 1 | . . . . . . . . . . . . . . . . 1 . . . . . . Hacking Detections 73 | . 2 . . 9 2 1 3 11 2 . 7 4 1 . 8 3 3 3 3 4 . 7 Full Trace Events 7 | . . . . . 1 . . 3 . . 1 1 . . . 1 . . . . . . Feedback Events . | . . . . . . . . . . . . . . . . . . . . . . . Feedback Blocked . | . . . . . . . . . . . . . . . . . . . . . . . Robot Schematics Acquired . | . . . . . . . . . . . . . . . . . . . . . . . Robots Built . | . . . . . . . . . . . . . . . . . . . . . . . Authchips . | . . . . . . . . . . . . . . . . . . . . . . . Time . | . . . . . . . . . . . . . . . . . . . . . . . Total Robot Build Rating . | . . . . . . . . . . . . . . . . . . . . . . . Part Schematics Acquired 20 | . 1 . . 4 . . 1 . . . 7 1 . . . 3 3 . . . . . Parts Built 14 | . . . . . . 2 . . 3 . 2 . . . . 5 . 2 . . . . Authchips 8 | . . . . . . 1 . . 3 . 2 . . . . 2 . . . . . . Time 658 | . . . . . . 39 . . 221 . 116 . . . . 213 . 69 . . . . Total Part Build Rating 91 | . . . . . . 14 . . 11 . 6 . . . . 42 . 18 . . . . Part Studies Acquired 13 | . . . . 3 . 1 . . . . 2 . . . . . 5 1 1 . . . Parts Repaired 1 | . . . . 1 . . . . . . . . . . . . . . . . . . Time 60 | . . . . 60 . . . . . . . . . . . . . . . . . . Parts Recycled . | . . . . . . . . . . . . . . . . . . . . . . . Recycled Matter . | . . . . . . . . . . . . . . . . . . . . . . . Retrieved Matter . | . . . . . . . . . . . . . . . . . . . . . . . Retrieved Components 7 | . . . . 7 . . . . . . . . . . . . . . . . . . Parts Scanalyzed 14 | . . . . 4 . . . . . . 7 . . . . 1 2 . . . . . Part Schematics Acquired 13 | . . . . 4 . . . . . . 7 . . . . 1 1 . . . . . Parts Damaged 4 | . . . . 1 . . . . . . 1 . . . . . 2 . . . . . Bothacking | -11 -10 -10 -10 -8 -8 -7 -7 -7 -5 -5 -4 -4 -4 -4 -4 -3 -3 -2 -2 -2 -1 -1 ------------ Run | Yrd Mat Min Sub Mat Gar Fac Sto Rec Fac DSF Fac Ext Cet Arc Hub Res Tes Res Qua Sec Acc Com Used RIF Installer . | . . . . . . . . . . . . . . . . . . . . . . . Robots Hacked 7 | . . 1 . . . . . . . . 1 1 . . 1 3 . . . . . . Non-combat 4 | . . . . . . . . . . . 1 . . . 1 2 . . . . . . Combat 3 | . . 1 . . . . . . . . . 1 . . . 1 . . . . . . Robot Hacks Applied 8 | . . 1 . . . . . . . . 1 1 . . 1 4 . . . . . . parse_system 4 | . . 1 . . . . . . . . . 1 . . 1 1 . . . . . . find_chute 1 | . . . . . . . . . . . 1 . . . . . . . . . . . find_fabricator 1 | . . . . . . . . . . . . . . . . 1 . . . . . . find_dsf 1 | . . . . . . . . . . . . . . . . 1 . . . . . . find_recycling 1 | . . . . . . . . . . . . . . . . 1 . . . . . . Relay Couplers Released 23 | . . . . . 20 . . . . . . . . . . . . . 3 . . . Machine Destruction 20 | . . . . . 17 . . . . . . . . . . . . . 3 . . . Programmers 3 | . . . . . 3 . . . . . . . . . . . . . . . . . Fabnet Peak Effective % . | . . . . . . . . . . . . . . . . . . . . . . . Robots Rewired 8 | . . . . . . . . . . . . 8 . . . . . . . . . . Allies Hacked . | . . . . . . . . . . . . . . . . . . . . . . . Hacks Repelled . | . . . . . . . . . . . . . . . . . . . . . . . Allies | -11 -10 -10 -10 -8 -8 -7 -7 -7 -5 -5 -4 -4 -4 -4 -4 -3 -3 -2 -2 -2 -1 -1 -------- Run | Yrd Mat Min Sub Mat Gar Fac Sto Rec Fac DSF Fac Ext Cet Arc Hub Res Tes Res Qua Sec Acc Com Total Allies 28 | . . 3 . . . . . . . . . 19 5 . . . . . . 1 . . Largest Group 13 | . . 3 . . . . . . . . . 13 13 12 8 . . . . 1 1 1 Highest-Rated Group 1204 | . . 40 . . . . . . . . . 680 911 807 546 . . . . 1204 1204 1204 Highest-Rated Ally 1204 | . . 16 . . . . . . . . . 159 159 143 96 . . . . 1204 1204 1204 Initial Warlord ECA Mod 14 | . . . . . . 7 7 7 5 5 14 14 14 14 14 13 13 12 12 12 11 11 Total Orders 9 | . . 1 . . . . . . . . . . . 2 3 . . . . . . 3 STAY 5 | . . 1 . . . . . . . . . . . 1 3 . . . . . . . ROAM 1 | . . . . . . . . . . . . . . . . . . . . . . 1 FOLLOW 1 | . . . . . . . . . . . . . . 1 . . . . . . . . EXPLORE 2 | . . . . . . . . . . . . . . . . . . . . . . 2 Ally Attacks 353 | . . 12 . . . . . . . . . 55 52 42 91 . . . . 11 2 88 Total Damage 17903 | . . 105 . . . . . . . . . 1570 1707 1504 2646 . . . . 978 126 9267 Kills 65 | . . 2 . . . . . . . . . 6 8 4 21 . . . . 1 . 23 Allies Corrupted 2 | . . . . . . . . . . . . . . . 2 . . . . . . . Allies Melted . | . . . . . . . . . . . . . . . . . . . . . . . Intel | -11 -10 -10 -10 -8 -8 -7 -7 -7 -5 -5 -4 -4 -4 -4 -4 -3 -3 -2 -2 -2 -1 -1 ------- Run | Yrd Mat Min Sub Mat Gar Fac Sto Rec Fac DSF Fac Ext Cet Arc Hub Res Tes Res Qua Sec Acc Com Active Infowar (turns) 6922 | 21 94 . 997 286 . . . . 295 339 898 49 . . . 893 744 627 914 410 103 252 Optics 993 | . . . . . . . . . 83 339 571 . . . . . . . . . . . Sensors 3425 | . . . . . . . . . . . 327 49 . . . . 744 627 913 410 103 252 Terrain 1336 | . . . . . . . . . . . . . . . . 552 . 626 133 . 25 . Structural 77 | . . . . . . . . . . . . . . . . . . . . . 55 22 Seismic 1398 | 21 94 . 997 286 . . . . . . . . . . . . . . . . . . T.N.C. 341 | . . . . . . . . . . . . . . . . 341 . . . . . . Jamming 307 | . . . . . . . . . 295 1 . . . . . . . . . . 11 . ID Mask 160 | . . . . . . . . . . . . . . . . . . . 160 . . . Robot Analysis Total 3 | . 2 . . 1 . . . . . . . . . . . . . . . . . . Derelict Logs Recovered 3 | . . 2 1 . . . . . . . . . . . . . . . . . . . Drone Launches 4 | . . . . . . . . . . . . . . . . . . . . . . 4 Drone Recoveries . | . . . . . . . . . . . . . . . . . . . . . . . Exploration | -11 -10 -10 -10 -8 -8 -7 -7 -7 -5 -5 -4 -4 -4 -4 -4 -3 -3 -2 -2 -2 -1 -1 ------------- Run | Yrd Mat Min Sub Mat Gar Fac Sto Rec Fac DSF Fac Ext Cet Arc Hub Res Tes Res Qua Sec Acc Com Turns Passed 27611 | 78 233 2175 1009 1611 1713 510 1475 5778 322 339 1307 1822 496 2512 585 1210 1257 627 1190 776 103 483 Spaces Moved 17335 | 54 134 985 714 810 509 188 567 1678 110 135 1238 914 191 413 551 1891 1514 910 1160 1521 290 858 Core 88 | 11 . . . . . . . . . . . 1 . 76 . . . . . . . . Treads 1592 | . . 332 24 . . . . . . . 71 728 191 245 . . . . . . . 1 Legs 36 | . . . . . . . . . . . . . . 1 . . . . 35 . . . Wheels 5353 | 43 134 653 690 600 509 188 567 1678 110 135 45 1 . . . . . . . . . . Hover 210 | . . . . 210 . . . . . . . . . . . . . . . . . . Flight 10056 | . . . . . . . . . . . 1122 184 . 91 551 1891 1514 910 1125 1521 290 857 Fastest Speed 20 | 50 95 110 110 38 145 145 130 115 145 145 37 37 130 61 45 39 34 28 23 23 22 20 Average Speed 88 | 92 109 171 126 108 158 160 144 148 147 159 52 96 135 495 58 45 40 28 27 24 22 22 Slowest Speed 2200 | 200 110 320 200 371 160 175 160 469 160 160 212 1100 165 2200 61 126 47 102 126 28 22 127 Overloaded Moves 2 | . . . . . . . . . . . . . . . . . . . . . . 2 Propulsion Burnouts . | . . . . . . . . . . . . . . . . . . . . . . . Robots Hopped 58 | . . . . . . . . . . . 8 . . . 6 4 21 1 3 10 1 4 Potential Cave-ins . | . . . . . . . . . . . . . . . . . . . . . . . Cave-ins Triggered . | . . . . . . . . . . . . . . . . . . . . . . . Exploration Rate (%) 53 | 3 28 98 38 72 45 5 52 97 2 94 24 83 70 90 58 46 93 26 79 69 9 49 Regions Visited 22 Branch Regions 12 Pre-discovered Areas 12 | . . 2 . 4 . . 1 5 . . . . . . . . . . . . . . Known Exits Taken 9 | . . . . 1 . . . . 1 . 1 . . . 1 . 1 1 1 1 1 . Unknown Exits Taken 11 | 1 1 1 1 . . 1 1 1 . . . 1 1 1 . 1 . . . . . . Scrap Searched 1 | . . 1 . . . . . . . . . . . . . . . . . . . . Spaces Dug 192 | . . 9 . 11 21 1 . 1 . 6 20 . . . 3 11 25 12 1 37 2 32 Terrain Destroyed 698 | . . 9 . 76 38 2 15 12 . 6 36 3 1 . 4 18 44 39 48 100 5 242 Melee 47 | . . . . 4 . . . . . 5 7 . . . 3 5 12 . 1 7 2 1 Projectile 187 | . . . . 4 . 2 15 1 . 1 1 3 1 . 1 13 25 22 8 20 3 67 AOE 452 | . . 9 . 68 38 . . 11 . . 28 . . . . . . 16 35 73 . 174 Terrain Rammed . | . . . . . . . . . . . . . . . . . . . . . . . Walls Destroyed . | . . . . . . . . . . . . . . . . . . . . . . . Machines Disabled . | . . . . . . . . . . . . . . . . . . . . . . . Actions | -11 -10 -10 -10 -8 -8 -7 -7 -7 -5 -5 -4 -4 -4 -4 -4 -3 -3 -2 -2 -2 -1 -1 --------- Run | Yrd Mat Min Sub Mat Gar Fac Sto Rec Fac DSF Fac Ext Cet Arc Hub Res Tes Res Qua Sec Acc Com Total 28046 | 74 180 1357 815 1319 1359 369 1200 4963 269 242 1795 1733 404 856 707 2144 1998 1228 1898 1780 313 1043 Wait 7924 | 2 12 271 66 229 786 99 362 3178 143 15 322 547 165 391 85 103 301 226 459 95 4 63 Move 17200 | 53 133 984 713 809 507 187 566 1677 109 134 1221 913 190 412 538 1882 1473 907 1153 1502 287 850 Hop 54 | . . . . . . . . . . . 8 . . . 6 4 19 1 3 9 1 3 Pick Up 246 | 6 11 11 3 34 2 4 10 16 5 9 22 24 9 5 . 16 12 5 22 18 . 2 Fast Attach 272 | 6 . . 3 22 . 7 13 6 4 4 21 16 8 12 5 27 15 13 62 20 3 5 Attach 150 | 1 1 3 2 12 1 4 7 3 4 6 22 20 2 2 4 4 6 6 12 9 5 14 Detach 68 | . . . . 8 . 2 2 . . 4 7 10 1 . 1 . 6 3 5 3 3 13 Swap 184 | 2 2 10 5 25 13 6 12 1 1 4 14 10 3 4 5 12 14 12 13 11 . 5 Drop 443 | . 1 3 15 37 5 13 26 30 2 10 46 23 12 17 5 34 26 13 84 34 2 5 Fire 1047 | 4 20 57 8 74 27 47 183 46 . 34 68 128 14 2 41 24 101 36 40 33 1 59 Melee 380 | . . 18 . 69 10 . 3 . 1 6 44 15 . 11 15 37 25 6 45 46 7 22 Ram . | . . . . . . . . . . . . . . . . . . . . . . . Kick . | . . . . . . . . . . . . . . . . . . . . . . . Crush . | . . . . . . . . . . . . . . . . . . . . . . . Escape Stasis 41 | . . . . . 8 . 16 . . 16 . . . . . . . . . . . 1 Rewire 25 | . . . . . . . . . . . . 25 . . . . . . . . . . Trap . | . . . . . . . . . . . . . . . . . . . . . . . Miscellaneous 12 | . . . . . . . . 6 . . . 2 . . 2 1 . . . . . 1 Route ------- -11/Scrapyard -10/Materials -10/Mines (discovered 3 exits: [*Mat x2] / [*Sub]) -10/Subcaves -8/Materials (discovered 4 exits: *Fac x3 / Gar) -8/Garrison (discovered 3 exits: *Fac x3) -7/Factory (discovered 3 exits: *Sto / Low x2) -7/Storage -7/Recycling -5/Factory -5/DSF -4/Factory -4/Extension (discovered 2 exits: *Res / *Cet) -4/Cetus (discovered 2 exits: *Res / [*Arc]) -4/Archives (discovered 3 exits: *Res / *Hub x2) -4/Hub_04(d) (discovered 4 exits: *Res x4) -3/Research (discovered 4 exits: *Res x3 / *Tes) -3/Testing -2/Research (discovered 2 exits: *Qua x2) -2/Quarantine (discovered 2 exits: *Sec / *Frg) -2/Section 7 -1/Access -1/Command Tau Ceti IV Orbit History --------- Turn | Location | Event 23 | -11/Scrapyard | Discovered new exit (range 15) 79 | -11/Scrapyard | Entered Materials 296 | -10/Materials | Discovered new exit (range 16) 305 | -10/Materials | Build established: Mutant 312 | -10/Materials | Entered Mines 405 | -10/Mines | Learned location of Storage (-7) 455 | -10/Mines | Assisted by bots powering up and referring to "LRC-V3" 621 | -10/Mines | YI-UF0 nonchalantly dropped a Grenade Launcher on the ground 628 | -10/Mines | Learned location of Zion (-7) 630 | -10/Mines | Learned Materials non-interactive machine intel 1332 | -10/Mines | Core integrity fell below 50% 1340 | -10/Mines | Destroyed YI-UF0 1354 | -10/Mines | Found YI-UF0's Doublenader 1358 | -10/Mines | Lost 3 allies 1360 | -10/Mines | Discovered new exit (range 6) 1473 | -10/Mines | Found a hidden stash of uninstalled traps 1473 | -10/Mines | Discovered new exit (range 16) 1644 | -10/Mines | Discovered new exit (range 10) 2487 | -10/Mines | Entered Subcaves 2488 | -10/Subcaves | Approached by a straggling Scientist 2683 | -10/Subcaves | Learned Materials stockpile data 2692 | -10/Subcaves | Build established: Scavenger-Mutant 3009 | -10/Subcaves | Shifting Twisted Machinery released Battle Cannon 3053 | -10/Subcaves | A swath of the cavern ceiling suddenly collapsed 3269 | -10/Subcaves | Build established: Mutant 3442 | -10/Subcaves | Core integrity fell below 20% 3461 | -10/Subcaves | Discovered new exit (range 6) 3496 | -10/Subcaves | Entered Materials 3496 | -8/Materials | Evolved 4 slots: Propulsion x2, Utility x2 3498 | -8/Materials | Loaded intel: 30 non-interactive machine locations 3811 | -8/Materials | Destroyed 9 combat bots 3813 | -8/Materials | Lost 9 parts (1p4n2u2w) 3884 | -8/Materials | Destroyed 9 combat bots 4286 | -8/Materials | Repaired Aerolev Unit 4294 | -8/Materials | Discovered new exit (range 3) 4656 | -8/Materials | Learned Storage interactive machine intel 4707 | -8/Materials | Identified exit to Factory 4719 | -8/Materials | Core integrity fell below 50% 4727 | -8/Materials | Garrison activated, responded to threat 4807 | -8/Materials | Learned 4 Factory zone layouts 5040 | -8/Materials | Identified exit to Garrison 5107 | -8/Materials | Entered Garrison 5139 | -8/Garrison | Triggered checkpoint 5198 | -8/Garrison | Garrison Relay disabled 5427 | -8/Garrison | Discovered exit to Factory (range 11) 5461 | -8/Garrison | Triggered checkpoint 5581 | -8/Garrison | Discovered exit to Factory (range 13) 5581 | -8/Garrison | Discovered exit to Factory (range 83) 5581 | -8/Garrison | Discovered exit to Factory (range 80) 5602 | -8/Garrison | Garrison Relay disabled 6316 | -8/Garrison | Attempted to access garrison exit controls, blocked by remote lockdown 6459 | -8/Garrison | Triggered checkpoint 6563 | -8/Garrison | Triggered checkpoint 6592 | -8/Garrison | Garrison Relay disabled 6606 | -8/Garrison | Garrison Relay disabled 6820 | -8/Garrison | Entered Factory 6820 | -7/Factory | Evolved 2 slots: Utility x2 6821 | -7/Factory | Identified exit to Lower Caves 7000 | -7/Factory | Fabricated Quantum Capacitor (x2) 7289 | -7/Factory | Discovered new exit (range 10) 7330 | -7/Factory | Entered Storage 7331 | -7/Storage | Loaded intel: 20 interactive machine locations 7370 | -7/Storage | Build established: Scavenger-Mutant 7924 | -7/Storage | Used back door to open Recycling access 7924 | -7/Storage | Discovered new exit (range 5) 8068 | -7/Storage | Learned location of Armory (-4) 8415 | -7/Storage | Found Prototype Launcher 8415 | -7/Storage | Identified Rocket Array 8511 | -7/Storage | Build established: Mutant 8530 | -7/Storage | First assault squad dispatched 8805 | -7/Storage | Entered Recycling 9383 | -7/Recycling | Discovered new exit (range 4) 9683 | -7/Recycling | Entered Scraplab 9691 | -7/Recycling | Found Prototype Device 9691 | -7/Recycling | Identified Scrap Engine 10686 | -7/Recycling | Build established: Construct 14583 | -7/Recycling | Entered Factory 14583 | -5/Factory | Evolved 4 slots: Power x1, Propulsion x1, Utility x1, Weapon x1 14689 | -5/Factory | Fabricated Enh. Autogun (x1) 14744 | -5/Factory | Fabricated Imp. System Shield (x1) 14810 | -5/Factory | Fabricated Enh. Autogun (x1) 14883 | -5/Factory | Search patrols dispatched 14898 | -5/Factory | Build established: Mutant 14905 | -5/Factory | Identified exit to DSF 14905 | -5/Factory | Entered DSF 14967 | -5/DSF | Additional patrols routed to DSF 14990 | -5/DSF | Wild Derelicts raided the area 15140 | -5/DSF | Sterilization system engaged 15160 | -5/DSF | Ambient heat levels rising (+10) 15175 | -5/DSF | Ambient heat levels rising (+10) 15175 | -5/DSF | Discovered new exit (range 5) 15190 | -5/DSF | Ambient heat levels rising (+10) 15205 | -5/DSF | Ambient heat levels rising (+10) 15220 | -5/DSF | Ambient heat levels rising (+10) 15235 | -5/DSF | Ambient heat levels rising (+10) 15244 | -5/DSF | Entered Factory 15244 | -4/Factory | Evolved 2 slots: Utility x1, Weapon x1 15369 | -4/Factory | Garrison activated, responded to threat 15392 | -4/Factory | Destroyed 7 combat bots 15631 | -4/Factory | Fabricated Enh. Autogun (x1) 15639 | -4/Factory | Watched by a mysterious "MATRIX" hacker. 15697 | -4/Factory | Fabricated Enh. Autogun (x1) 15859 | -4/Factory | Found Quantum Capacitor 15962 | -4/Factory | Found Quantum Capacitor 16365 | -4/Factory | Discovered new exit (range 16) 16465 | -4/Factory | System corruption reached 10% 16500 | -4/Factory | Lost 7 parts (1p2n1u3w) 16547 | -4/Factory | Build established: Hacker-Mutant 16550 | -4/Factory | Identified exit to Extension 16551 | -4/Factory | Entered Extension 16590 | -4/Extension | Rescued a captive Derelict 17099 | -4/Extension | Build established: Hacker-Gunner 17156 | -4/Extension | Rescued a captive Derelict 17616 | -4/Extension | Spotted B-86 Titan 17658 | -4/Extension | Destroyed B-86 Titan 17680 | -4/Extension | Lost 3 allies 17688 | -4/Extension | Lost 4 parts (2p1u1w) 17688 | -4/Extension | Spotted B-86 Titan 17760 | -4/Extension | Destroyed B-86 Titan 17781 | -4/Extension | Found Hvy. Reflective Plating 17860 | -4/Extension | Rescued A7 17887 | -4/Extension | Build established: Scavenger-Tank 17949 | -4/Extension | Rescued a captive Derelict 17950 | -4/Extension | Rescued a captive Derelict 17984 | -4/Extension | Rescued a captive Derelict 18011 | -4/Extension | Rescued a captive Derelict 18013 | -4/Extension | Rescued a captive Derelict 18045 | -4/Extension | Rescued a captive Derelict 18045 | -4/Extension | Rescued a captive Derelict 18059 | -4/Extension | Rescued a captive Derelict 18065 | -4/Extension | Rescued a captive Derelict 18327 | -4/Extension | Discovered new exit (range 10) 18328 | -4/Extension | Discovered new exit (range 6) 18373 | -4/Extension | Entered Cetus 18373 | -4/Cetus | Accompanied by 13 allies (A7) 18378 | -4/Cetus | Acquired a Cetus Manufacturing Module code from A7 18406 | -4/Cetus | Spotted Cetus Guard 18406 | -4/Cetus | Spotted Cetus Guard 18411 | -4/Cetus | Spotted Cetus Guard 18411 | -4/Cetus | Spotted Cetus Guard 18425 | -4/Cetus | Destroyed Cetus Guard 18426 | -4/Cetus | Allies destroyed Cetus Guard 18435 | -4/Cetus | Destroyed Cetus Guard 18439 | -4/Cetus | Allies destroyed Cetus Guard 18457 | -4/Cetus | Lost 5 allies 18555 | -4/Cetus | Started Cetus Manufacturing Module 18563 | -4/Cetus | Escorted A7 to Cetus Mainframe 18580 | -4/Cetus | Manufactured an Enhanced Grunt 18592 | -4/Cetus | Discovered new exit (range 16) 18605 | -4/Cetus | Manufactured an Enhanced Grunt 18630 | -4/Cetus | Manufactured an Enhanced Grunt 18655 | -4/Cetus | Manufactured an Enhanced Grunt 18680 | -4/Cetus | Manufactured an Enhanced Grunt 18719 | -4/Cetus | Spotted Cetus Guard 18719 | -4/Cetus | Spotted Cetus Guard 18721 | -4/Cetus | Spotted Cetus Guard 18721 | -4/Cetus | Spotted Cetus Guard 18724 | -4/Cetus | Allies destroyed Cetus Guard 18724 | -4/Cetus | Allies destroyed Cetus Guard 18724 | -4/Cetus | Allies destroyed Cetus Guard 18730 | -4/Cetus | Allies destroyed Cetus Guard 18740 | -4/Cetus | Found Prototype Device 18740 | -4/Cetus | Identified Exp. Thermal Shield 18774 | -4/Cetus | Discovered new exit (range 15) 18782 | -4/Cetus | Met Revision 17 18869 | -4/Cetus | Entered Archives 18869 | -4/Archives | Accompanied by 12 allies (A7) 18874 | -4/Archives | Received a hacking code to weaken MAIN.C 18926 | -4/Archives | Lost 3 allies 18949 | -4/Archives | Discovered new exit (range 16) 19050 | -4/Archives | Discovered new exit (range 16) 19079 | -4/Archives | Discovered new exit (range 16) 19887 | -4/Archives | Build established: Commander-Construct 21381 | -4/Archives | Entered Hub_04(d) 21381 | -4/Hub_04(d) | Accompanied by 8 allies 21388 | -4/Hub_04(d) | Spotted B-86 Titan 21440 | -4/Hub_04(d) | Lost 3 allies 21563 | -4/Hub_04(d) | Discovered new exit (range 9) 21694 | -4/Hub_04(d) | Discovered new exit (range 11) 21708 | -4/Hub_04(d) | Build established: Scavenger-Construct 21835 | -4/Hub_04(d) | Garrison activated, responded to threat 21867 | -4/Hub_04(d) | Identified exit to Research 21878 | -4/Hub_04(d) | Network Hub disabled 21904 | -4/Hub_04(d) | Spotted Lightning 21904 | -4/Hub_04(d) | Spotted Lightning 21904 | -4/Hub_04(d) | Spotted Lightning 21909 | -4/Hub_04(d) | Network Hub disabled 21939 | -4/Hub_04(d) | Network Hub disabled 21941 | -4/Hub_04(d) | Spotted Lightning 21941 | -4/Hub_04(d) | Spotted Lightning 21943 | -4/Hub_04(d) | Core integrity fell below 50% 21960 | -4/Hub_04(d) | Network Hub disabled 21960 | -4/Hub_04(d) | Spotted Lightning 21966 | -4/Hub_04(d) | Entered Research 21966 | -3/Research | Evolved 2 slots: Propulsion x1, Utility x1 21971 | -3/Research | Lost 3 allies 22166 | -3/Research | Revision forces began assault on 0b10 22209 | -3/Research | Found Fusion Bomb Launcher 22228 | -3/Research | Met up with Revision 17++ 22257 | -3/Research | Identified exit to Research 22260 | -3/Research | Central database locked down 22312 | -3/Research | Discovered new exit (range 8) 22411 | -3/Research | Murdered Revision 17++ 22557 | -3/Research | Build established: Hacker-Mutant 22560 | -3/Research | Fabricated Cmb. Linear Gravjet (x2) 22590 | -3/Research | Fabricated Cld. Gravmag System (x1) 22665 | -3/Research | Found Prototype Launcher 22665 | -3/Research | Identified Hellfire Missile Launcher 22666 | -3/Research | Research terminal network offline 22895 | -3/Research | Targeted by mysterious "MATRIX" hacker. 22950 | -3/Research | Fabricated Enh. Quantum Rifle? 22959 | -3/Research | Build established: Hacker-Skirmisher 23084 | -3/Research | Spotted Striker 23096 | -3/Research | Spotted Striker 23100 | -3/Research | Spotted Striker 23108 | -3/Research | Destroyed Striker 23112 | -3/Research | Spotted Striker 23112 | -3/Research | Spotted Striker 23176 | -3/Research | Entered Testing 23177 | -3/Testing | Spotted PG-9ZVFNF9VCI 23214 | -3/Testing | Found Portable AFG 23284 | -3/Testing | Found Prototype Ballistic Gun 23284 | -3/Testing | Identified Hyp. Multirail 23415 | -3/Testing | Build established: Hacker-Tank 23576 | -3/Testing | Found Prototype Leg 23680 | -3/Testing | Found Prototype Energy Cannon 23680 | -3/Testing | Identified Null Cannon 23832 | -3/Testing | Discovered exit to Research (range 11) 24050 | -3/Testing | Found Prototype Energy Gun 24050 | -3/Testing | Identified Warp Gun 24175 | -3/Testing | Spotted Striker 24176 | -3/Testing | Spotted Striker 24197 | -3/Testing | Identified Myomer Exoskeleton 24426 | -3/Testing | First assault squad dispatched 24433 | -3/Testing | Entered Research 24433 | -2/Research | Evolved 2 slots: Propulsion x1, Utility x1 24505 | -2/Research | Identified exit to Quarantine 24642 | -2/Research | Spotted B-90 Cyclops 24660 | -2/Research | Found Prototype Protection 24660 | -2/Research | Identified Centrium Heavy Armor Plating 24733 | -2/Research | Found Prototype Launcher 24733 | -2/Research | Identified Enh. Gamma Bomb Array 24736 | -2/Research | Found Unknown Launcher 24736 | -2/Research | Identified Gamma Bomb Array 24754 | -2/Research | Found Adv. Powered Armor 24785 | -2/Research | Build established: Scout 24859 | -2/Research | Fabricated Quantum Reactor? 25060 | -2/Research | Entered Quarantine 25077 | -2/Quarantine | Found Alien Energy Cannon 25077 | -2/Quarantine | Identified Core Cannon 25095 | -2/Quarantine | Found Alien Artifact 25095 | -2/Quarantine | Identified Core Reset Matrix 25095 | -2/Quarantine | Used Core Reset Matrix 25099 | -2/Quarantine | Detected hypermatrix surge 25099 | -2/Quarantine | Sensed 16 artifacts in vicinity 25108 | -2/Quarantine | Found Subatomic Replicator 25140 | -2/Quarantine | Unchained authorized (BL-1NK) 25161 | -2/Quarantine | Cryocooling Duct disabled 25176 | -2/Quarantine | Ambient heat levels rising (+20) 25176 | -2/Quarantine | Non-combat units ordered to evacuate 25196 | -2/Quarantine | Found Core Stripper 25497 | -2/Quarantine | Build established: Sprinter 25512 | -2/Quarantine | Destroyed BL-1NK 25525 | -2/Quarantine | Found Prototype Protection 25525 | -2/Quarantine | Identified Lgt. Regenerative Plating 25564 | -2/Quarantine | Found Prototype Device 25623 | -2/Quarantine | Found Unknown Processor 25623 | -2/Quarantine | Identified ID Mask 25623 | -2/Quarantine | ID Mask engaged 25780 | -2/Quarantine | Spotted Fortress 25783 | -2/Quarantine | ID Mask no longer valid 25812 | -2/Quarantine | Destroyed Fortress 25820 | -2/Quarantine | Found Unknown Protection 25820 | -2/Quarantine | Identified Hvy. Insulated Plating 25825 | -2/Quarantine | Found Prototype Device 25825 | -2/Quarantine | Identified Exp. EM Shield 25829 | -2/Quarantine | Found Prototype Device 25829 | -2/Quarantine | Identified Thermal Barrier 25834 | -2/Quarantine | Found Prototype Device 25834 | -2/Quarantine | Identified Exp. Force Field 25996 | -2/Quarantine | Found Sigix Broadsword 26017 | -2/Quarantine | Found Hpw. Transdimensional Reconstructor 26023 | -2/Quarantine | Found Dimensional Node Initializer 26030 | -2/Quarantine | Found Transdimensional Reconstructor 26056 | -2/Quarantine | Identified Blink Core 26184 | -2/Quarantine | Found Phase Redirector 26186 | -2/Quarantine | Met incapacitated Sigix Warrior 26186 | -2/Quarantine | Lockdown squad dispatched 26186 | -2/Quarantine | Acquired the access code to the Sigix quarantine chamber 26187 | -2/Quarantine | Unlocked Sigix quarantine chamber 26191 | -2/Quarantine | Found Sigix Containment Pod 26247 | -2/Quarantine | Discovered new exit (range 5) 26247 | -2/Quarantine | Discovered new exit (range 6) 26248 | -2/Quarantine | Identified exit to Section 7 26249 | -2/Quarantine | Identified exit to Protoforge 26250 | -2/Quarantine | Entered Section 7 26251 | -2/Section 7 | Detected hypermatrix surge 26251 | -2/Section 7 | Sensed 22 artifacts in vicinity 26253 | -2/Section 7 | Spotted S7 Guard 26429 | -2/Section 7 | Spotted Alpha 7 26456 | -2/Section 7 | Spotted B-90 Cyclops 26546 | -2/Section 7 | Spotted Alpha 7 26620 | -2/Section 7 | Destroyed Alpha 7 26624 | -2/Section 7 | Found Prototype Processor 26624 | -2/Section 7 | Identified Exp. Target Analyzer 26675 | -2/Section 7 | Found Prototype Ballistic Gun 26675 | -2/Section 7 | Identified Multirail 26736 | -2/Section 7 | Build established: Alien-Sprinter 26750 | -2/Section 7 | First assault squad dispatched 26765 | -2/Section 7 | Found Spacefold Activator 26806 | -2/Section 7 | Discovered new exit (range 11) 26807 | -2/Section 7 | Spotted S7 Guard 26818 | -2/Section 7 | Found Integrated Reactor 26818 | -2/Section 7 | Installed Integrated Reactor, increased core energy generation (+10) 26835 | -2/Section 7 | Initialized slip node 26867 | -2/Section 7 | Spotted B-99 Colossus 26869 | -2/Section 7 | Destroyed 11 combat bots 26891 | -2/Section 7 | Found Integrity Redistributor 26892 | -2/Section 7 | Found Integrity Redistributor 26902 | -2/Section 7 | Found LRC Matter Compressor 26902 | -2/Section 7 | Installed LRC Matter Compressor, increased matter storage capacity (+125) 26905 | -2/Section 7 | Found LRC Energy Well 26905 | -2/Section 7 | Installed LRC Energy Well, increased energy storage capacity (+250) 26935 | -2/Section 7 | Used Subatomic Replicator to replicate Sigix Containment Pod 26942 | -2/Section 7 | Activated Sigix Exoskeleton 26942 | -2/Section 7 | Received instructions from Sigix Warrior 27020 | -2/Section 7 | Identified exit to Access 27026 | -2/Section 7 | Entered Access 27026 | -1/Access | Accompanied by 1 ally (Sigix Warrior) 27026 | -1/Access | Evolved 2 slots: Propulsion x1, Utility x1 27125 | -1/Access | Spotted B-99 Colossus 27125 | -1/Access | Spotted B-99 Colossus 27127 | -1/Access | Discovered new exit (range 3) 27127 | -1/Access | Identified exit to Command 27129 | -1/Access | Entered Command 27129 | -1/Command | Accompanied by 1 ally (Sigix Warrior) 27182 | -1/Command | Phase Generator disabled 27379 | -1/Command | First assault squad dispatched 27396 | -1/Command | Spotted B-99 Colossus 27420 | -1/Command | Allies destroyed B-99 Colossus 27434 | -1/Command | High security lockdown imminent 27514 | -1/Command | High security lockdown engaged 27525 | -1/Command | Sigix Exoskeleton integrity reduced to 80% 27526 | -1/Command | Spotted B-99 Colossus 27530 | -1/Command | Used Integrity Redistributor, redistributed integrity from core (-450) 27534 | -1/Command | Spotted Alpha 7 27536 | -1/Command | Spotted Striker 27542 | -1/Command | Spotted Executioner 27543 | -1/Command | Spotted Alpha 7 27564 | -1/Command | Destroyed Executioner 27574 | -1/Command | Sigix Exoskeleton integrity reduced to 60% 27589 | -1/Command | Spotted Executioner 27589 | -1/Command | Spotted Executioner 27591 | -1/Command | Spotted Striker 27591 | -1/Command | Spotted Executioner 27591 | -1/Command | Spotted Executioner 27591 | -1/Command | Spotted Executioner 27591 | -1/Command | Spotted Striker 27592 | -1/Command | Spotted B-99 Colossus 27600 | -1/Command | Sigix Exoskeleton integrity reduced to 40% 27600 | -1/Command | Spotted B-99 Colossus 27603 | -1/Command | Discovered new exit (range 8) 27607 | -1/Command | Identified exit to Surface 27612 | *** | Destroyed 0b10! Last Messages --------------- 27608_ Destroyed Multirail. 27608_ Beam penetrates B-99 Colossus. 27608_ Beam penetrates Wall. 27608_ Beam penetrates Reinforced Barrier. 27608_ Penetrated by Slug. 27608_ Slug penetrates Wall. 27608_ Penetrated by Slug. 27608_ Imp. Quantum Reactor destroyed. 27608_ Slug penetrates Wall. 27609_ Penetrated by Slug. 27609_ Slug penetrates Sigix Warrior. 27609_ Slug penetrates B-99 Colossus. 27610_ Beam penetrates B-99 Colossus. 27610_ Slug penetrates Sigix Warrior. 27611_ Penetrated by Slug. 27611_ Slug penetrates Wall. 27611_ Penetrated by Slug. 27612_ B-99 Colossus activates siege mode. 27612_ The unstable cave ceiling collapses. [Achievement: Partners In Destruction] Map ----- +----------------------------------------------------+ | ##+## ##### #???????????????????????????????? | | !! ???????????????????????????? | | % ! #?????????????????????????####?? | | #?????????????????????????#""#?? | | ""???????????????##########T"### | | ""???????????????# = + | | ""## R???????????????# # ##### | | " ?? ""???????????????# # #???# | | "??? "????????????????# # #???# | | % #??? #????????????????# = # #???# | | #???? #????????????????# # #####+## | | / #????#######?????????????????# # + | | %! #????????????????????????????# ##### | | % #????????????????????????????# ! #???# "" | | !% #????????????????????????????######???# """ | | % #?????????????????????????????????????# """ | | !! #?????????????????????????????????????# "" | | !%[ #?????????????????????????????????????# | | %/ #???? ??????#####????##???????????????# | | = #???? ???## #####;####????????????# = | | #??####;;;## #????????????###### | | #?## # ##; #?????????????????? | | ### ! % BB ^ #?????????????????? | | !=!# !%= E BB % % #?????????????????? | | %[%= ! K ^ #?????????????????? | | ![!% %7 % K X "@ #??????????????#### | | =* % % "" #??????????????# | | % ! % #????????????### | | """ /##" % %! #????????????# " | | " # BB ^ #????????????### | | ## # BB #??????????????# | | #### ###### #??????????????# | | """" ???## ????# ###########???????######## | | """" ?????# ???#######???????????????# # | | """" ??????# ????????????????????????# # | | ??"" ???????# ???????????????????????# ! # | | ???? ????????##??????????????????????# # | | ???? ????????????????????????????????# # | | ????##?????????????????????????????????# # | | ???????????????????????????????????????# # | | ???????????????????????????????????????# # | | ???????????????????????????????????????# + | | ???????????????????????????????????????# # | | ??????????????????????????###########??# # | | ??????????????????????????# ??# ! # | | ??????????????????????????# ! ?# # | | ??????????????????????????# == ?#+###### | | ??????????????????????????# == # | | ??????????????????????????# == # | | ??????????????????????????# + | +----------------------------------------------------+ Best States ------------- Heat Dissipation 81 Coolant Potential 120 Energy Generation 69 Energy Capacity 1080 Matter Stores 748 Matter Capacity 800 Sight Range 22 Robot Scan Range 18 Terrain Scan Range 24 Terrain Scan Density 10 Jamming Range 12 Power Amplification 30 Additional Mass Support 25 Corruption Containment 8 Armor Coverage 1000 Resistance: KI 30 Resistance: TH 50 Resistance: EM 75 Propulsion Shielding 90 Weapon Shielding 90 Weapon Cycling 15 Melee Speed Boost 20 Phase Shifting 10 Evasion (%) 75 Targeting Accuracy 6 Target Analysis 10 Recoil Reduction 5 Offensive Hacking 36 Defensive Hacking 28 Authchip Count 7 Item Schematics ----------------- None Robot Schematics ------------------ None Fabricated ------------ Quantum Capacitor | x2 | -7/Factory | Preloaded, Authchip Enh. Autogun | x1 | -5/Factory | Authchip Imp. System Shield | x1 | -5/Factory | Authchip Enh. Autogun | x1 | -5/Factory | Authchip Enh. Autogun | x1 | -4/Factory | Authchip Enh. Autogun | x1 | -4/Factory | Authchip Cmb. Linear Gravjet | x2 | -3/Research | Authchip Cld. Gravmag System | x1 | -3/Research | Authchip Enh. Quantum Rifle | x2 | -3/Research | Preloaded Quantum Reactor | x2 | -2/Research | Preloaded Repaired ---------- Aerolev Unit | 18% | -8/Materials Studied --------- Mic. Antimatter Reactor | -2/Quarantine | Hacked Alien Tech Used ----------------- Core Cannon Core Reset Matrix Core Stripper Sigix Broadsword Phase Redirector Integrated Reactor Dimensional Node Initializer LRC Matter Compressor LRC Energy Well Subatomic Replicator Integrity Redistributor Achievements -------------- Partners In Destruction Challenges ------------ None Game ------ Seed SwordVisualBasin Manual? 0 Play Time 06:39:56 Cumulative 1445.5 hours Start 2026.04.13 @ 19:51:06 End 2026.04.15 @ 17:13:15 Sessions 7 Manual Loads 0 Difficulty Rogue Special Mode None Game No. 471 Rogue 464 Adventurer 4 Explorer 3 Win Type 3 Total 43 Types 19/5/2/4/1/3/4/1/2/2 Lore% 97 Gallery% 95 Achievement% 87 Wizard Run 0 Options --------- Layout 0 ASCII 0 Keyboard 0 Movement Numpad Keybinds 0 Fullscreen 2 Font 18/Terminus Map View 76x50 Zoom Use 0% Tactical HUD 1 Map Filters NONE Filters NONE Steam 1 RUN: 92b79a43-2dad-45c0-9051-142deb5a219b